bitfinex-derivatives/quotes_ETHF0:USTF0_20240907
["timestamp","ask_amount","ask_price","bid_price","bid_amount"]
[1725689404741,0.3707,2262.6,2262.3,0.44213]
[1725689404945,1.27,2262.6,2262.3,0.81933]
[1725689405144,1.27,2262.6,2262.4,0.44211]
[1725689405441,1.71207,2262.6,2262.5,0.3765]
[1725689405632,1.27,2262.6,2262.5,0.3765]
[1725689405838,1.27,2262.6,2262.5,0.81859]
[1725689406041,1.27,2262.6,2262.5,0.3765]
[1725689406234,1.71204,2262.8,2262.5,0.81858]
[1725689406645,1.71204,2262.8,2262.5,0.3765]
[1725689407038,0.44206,2262.7,2262.5,0.3765]
[1725689407234,1.27,2262.6,2262.5,0.3765]
[1725689407946,3.50205,2262.8,2262.5,0.3765]
[1725689408650,0.44206,2262.7,2262.5,0.3765]
[1725689408846,3.50205,2262.8,2262.5,0.3765]
[1725689409946,3.50205,2262.8,2262.5,0.81859]
[1725689410650,3.50204,2262.8,2262.5,0.81859]
[1725689411341,0.44206,2262.7,2262.5,0.3765]
[1725689412046,0.44207,2262.6,2262.3,4.02713]
[1725689413349,0.44211,2262.5,2262.3,3.2078]
[1725689413738,3.06,2262.4,2261.7,3.2078]
[1725689413939,6.2678,2262.2,2261.6,0.7465]
[1725689414140,0.44225,2261.7,2261.6,0.7465]
[1725689414343,0.44225,2261.7,2261.4,3.2078]
[1725689414540,0.44225,2261.7,2261.4,3.6501]
[1725689414746,0.44225,2261.7,2261.4,3.2078]
[1725689414952,0.7469,2261.9,2261.1,3.28260243]
[1725689414953,1.10559,2261.8,2261.1,6.93276243]
[1725689415148,0.44231,2261.5,2261.1,3.87276243]
[1725689415651,0.44231,2261.5,2261.2,0.44235]
[1725689416352,0.44231,2261.4,2261.1,3.2078]
[1725689416544,0.44231,2261.4,2261.0,4.02968]
[1725689416848,0.4423,2261.5,2261.1,0.44236]
[1725689417242,0.4423,2261.5,2261.2,0.44235]
[1725689417449,0.4423,2261.5,2261.1,0.44235]
[1725689418245,0.4423,2261.5,2261.2,0.44234]
[1725689419052,0.4423,2261.5,2261.1,0.44235]
[1725689419256,0.4423,2261.5,2261.0,3.5873]
[1725689419257,0.44226,2261.7,2261.3,0.44232]
[1725689419455,4.16562,2261.8,2261.0,3.5873]
[1725689419659,0.44231,2261.4,2261.1,0.44236]
[1725689421153,0.44228,2261.6,2261.2,0.44235]
[1725689421358,0.44226,2261.7,2261.3,0.44233]
[1725689421558,3.50224,2261.8,2261.5,0.44228]
[1725689422663,3.9547,2261.9,2261.7,0.44224]
[1725689422664,3.2078,2261.9,2261.7,0.44224]
[1725689423359,3.2078,2261.9,2261.6,0.44226]
[1725689423565,3.2078,2261.9,2261.7,0.44224]
[1725689424460,3.2078,2261.9,2261.5,0.3987]
[1725689424664,3.2078,2261.9,2261.7,0.44224]
[1725689424862,0.4422,2262.0,2261.7,0.44224]
[1725689425059,0.44218,2262.1,2261.8,0.44223]
[1725689425461,3.4276,2262.2,2261.9,0.44221]
[1725689425664,3.4276,2262.2,2261.8,0.44222]
[1725689425865,3.86976,2262.2,2261.9,0.4422]
[1725689427166,3.4276,2262.2,2262.0,0.44219]
[1725689427469,0.3676,2262.2,2262.1,0.44217]
[1725689427673,3.50212,2262.4,2262.1,0.44217]
[1725689429171,3.06,2262.4,2262.2,0.44215]
[1725689429979,3.50212,2262.4,2262.1,0.44216]
[1725689434974,3.50212,2262.4,2262.2,0.44215]
[1725689434975,3.06,2262.4,2262.2,0.44215]
[1725689435176,0.44211,2262.5,2262.2,0.44215]
[1725689436277,3.4578,2262.6,2262.4,0.44211]
[1725689436573,0.3978,2262.6,2262.4,0.44211]
[1725689436770,0.83988,2262.6,2262.3,0.44212]
[1725689437177,0.3978,2262.6,2262.2,3.2078]
[1725689437385,0.3978,2262.6,2262.0,0.7499]
[1725689437588,0.3978,2262.6,2262.1,0.44215]
[1725689437779,0.44212,2262.4,2262.1,0.44215]
[1725689438283,0.4421,2262.5,2262.2,0.44214]
[1725689439081,0.44212,2262.4,2262.1,0.83886]
[1725689439584,0.83161,2262.5,2262.2,0.44215]
[1725689440275,0.44212,2262.4,2262.2,0.44215]
[1725689440482,0.8316,2262.5,2262.2,0.44215]
[1725689441392,0.4421,2262.5,2262.1,0.3967]
[1725689441579,0.4421,2262.5,2262.2,0.44214]
[1725689442085,0.3978,2262.6,2262.3,0.44213]
[1725689442385,0.4421,2262.5,2262.2,0.44214]
[1725689442786,0.83988,2262.6,2262.3,0.44212]
[1725689443187,0.83988,2262.6,2262.4,0.44211]
[1725689443385,0.3978,2262.6,2262.3,0.44212]
[1725689443778,0.83989,2262.6,2262.3,0.44212]
[1725689443979,2.10989,2262.6,2262.3,0.44212]
[1725689445481,2.10989,2262.6,2261.9,1.15770832]
[1725689445482,0.44217,2262.1,2261.9,1.15770832]
[1725689445683,0.3823,2262.0,2261.8,1.59993832]
[1725689445884,1e-08,2262.0,2261.8,0.44223]
[1725689449483,1e-08,2262.0,2261.9,3.2078]
[1725689449684,0.44217,2262.1,2261.8,0.44223]
[1725689449885,1.58866,2262.2,2261.9,0.4422]
[1725689450089,1.58866,2262.2,2261.9,3.65]
[1725689450393,0.44217,2262.1,2261.9,0.4422]
[1725689450692,0.44217,2262.1,2261.9,3.65]
[1725689451287,0.44217,2262.1,2261.9,3.2078]
[1725689451681,0.44216,2262.2,2261.9,3.65]
[1725689452392,0.44218,2262.1,2261.9,3.65]
[1725689452986,0.44217,2262.2,2261.9,3.65]
[1725689453387,0.44217,2262.1,2261.9,3.65]
[1725689453885,0.44217,2262.2,2261.9,3.65]
[1725689454195,0.44217,2262.2,2262.0,0.44219]
[1725689454402,0.44212,2262.4,2262.1,0.82176]
[1725689454586,0.44212,2262.4,2262.2,0.44215]
[1725689454786,0.44212,2262.4,2262.1,0.7537]
[1725689455492,0.44213,2262.3,2262.1,1.19586]
[1725689455991,0.44213,2262.4,2262.1,1.19586]
[1725689458490,0.4421,2262.5,2262.1,0.7537]
[1725689458799,3.06,2262.6,2262.3,0.44212]
[1725689458800,0.44209,2262.6,2262.3,0.44212]
[1725689459092,0.44209,2262.6,2262.4,0.3636]
[1725689459594,0.44209,2262.6,2262.5,0.3883]
[1725689460199,0.7254,2262.7,2262.5,0.3883]
[1725689460390,0.44207,2262.6,2262.5,0.3883]
[1725689461797,1.16746,2262.7,2262.5,0.3883]
[1725689462401,1.02414204,2262.9,2262.8,0.44204]
[1725689462585,0.44197,2263.2,2262.9,0.44201]
[1725689462787,0.44196,2263.2,2263.0,0.3753]
[1725689463090,0.44191,2263.5,2263.2,0.44195]
[1725689463289,1e-08,2263.9,2263.4,3.2078]
[1725689463491,0.44184001,2263.9,2263.5,1.18829]
[1725689464099,0.44184,2263.8,2263.5,0.7464]
[1725689464593,0.44183001,2263.9,2263.5,0.7464]
[1725689464792,0.44183001,2263.9,2263.5,1.1883]
[1725689464989,1e-08,2263.9,2263.5,1.1883]
[1725689465395,0.44185,2263.8,2263.5,0.7464]
[1725689466299,0.44183001,2263.9,2263.5,1.1883]
[1725689466603,0.44185,2263.8,2263.5,0.7464]
[1725689467605,0.44186,2263.7,2263.5,0.7464]
[1725689467793,0.44185,2263.8,2263.5,0.7464]
[1725689468303,0.44183001,2263.9,2263.5,1.1883]
[1725689468899,0.44183001,2263.9,2263.6,0.44188]
[1725689469100,0.44183001,2263.9,2263.6,0.83798]
[1725689469300,0.44183001,2263.9,2263.6,0.3961]
[1725689469508,0.44184,2263.8,2263.5,0.7464]
[1725689469698,0.44187,2263.7,2263.5,0.7464]
[1725689469899,0.44188,2263.6,2263.5,0.3753]
[1725689470204,0.44187,2263.7,2263.5,0.3753]
[1725689470398,1e-08,2263.9,2263.5,0.3753]
[1725689470898,1e-08,2263.9,2263.8,0.44184]
[1725689471100,1e-08,2263.9,2263.5,0.3753]
[1725689471303,0.44187,2263.7,2263.5,0.3753]
[1725689472800,0.44187,2263.7,2263.5,0.8172]
[1725689472995,0.44187,2263.7,2263.5,0.3753]
[1725689473905,0.44185,2263.8,2263.5,0.81719]
[1725689474402,0.44188,2263.6,2263.5,0.3753]
[1725689476802,0.44187,2263.7,2263.5,0.3753]
[1725689477906,1.10459001,2263.9,2263.5,0.3753]
[1725689478106,0.44188,2263.7,2263.5,0.3753]
[1725689478298,0.44188,2263.6,2263.5,0.3753]
[1725689478706,0.44187,2263.7,2263.5,0.3753]
[1725689479304,0.44185,2263.8,2263.5,0.81719]
[1725689479501,0.44185,2263.8,2263.6,0.3734]
[1725689480503,0.44184,2263.8,2263.6,0.3734]
[1725689481006,1e-08,2263.9,2263.7,0.44185]
[1725689481202,1e-08,2263.9,2263.8,3.64964]
[1725689481402,1e-08,2263.9,2263.8,8.06724]
[1725689483411,1e-08,2263.9,2263.8,3.64964]
[1725689483601,1e-08,2263.9,2263.8,8.06724]
[1725689489306,1e-08,2263.9,2263.8,3.64964]
[1725689489512,1e-08,2263.9,2263.8,3.2078]
[1725689489709,1e-08,2263.9,2263.6,0.3734]
[1725689489910,0.44183001,2263.9,2263.6,1.19377]
[1725689491914,1e-08,2263.9,2263.7,0.44184]
[1725689492214,1e-08,2263.9,2263.6,0.7519]
[1725689492618,1e-08,2263.9,2263.7,0.44186]
[1725689493213,0.44182001,2263.9,2263.7,0.44186]
[1725689493414,0.44182001,2263.9,2263.6,1.19377]
[1725689494019,0.44186,2263.7,2263.6,0.3734]
[1725689494715,0.44186,2263.7,2263.6,4.791]
[1725689495623,0.44186,2263.7,2263.6,0.3734]
[1725689499611,0.44183001,2263.9,2263.7,0.44186]
[1725689499925,0.44186,2263.8,2263.6,0.3734]
[1725689500318,0.44186,2263.7,2263.6,0.3734]
[1725689500521,1.10471,2263.6,2263.0,4.36550832]
[1725689500721,0.44191,2263.5,2263.3,0.44193]
[1725689500920,0.44189,2263.6,2263.4,0.44191]
[1725689501126,0.44187,2263.7,2263.5,0.3984]
[1725689501326,0.44187,2263.7,2263.5,1.2001]
[1725689501526,0.44185,2263.8,2263.6,0.44188]
[1725689501822,0.44183001,2263.9,2263.6,3.64967]
[1725689502021,0.44183001,2263.9,2263.6,4.91967]
[1725689502223,0.44183001,2263.9,2263.7,0.44186]
[1725689502424,0.44183001,2263.9,2263.6,4.91967]
[1725689503231,0.44184,2263.8,2263.6,4.91967]
[1725689504529,1e-08,2263.9,2263.6,3.2078]
[1725689504732,1e-08,2263.9,2263.5,2.47009]
[1725689505034,0.44184,2263.8,2263.5,2.47009]
[1725689505632,0.44184,2263.8,2263.6,0.44188]
[1725689506753,0.44183001,2263.9,2263.6,0.44188]
[1725689507129,0.44183001,2263.9,2263.6,3.2078]
[1725689507436,0.44183001,2263.9,2263.7,0.44186]
[1725689508547,0.44183001,2263.9,2263.6,4.4778]
[1725689508548,0.44183001,2263.9,2263.6,4.91966]
[1725689508840,0.44183001,2263.9,2263.7,1.15770832]
[1725689509040,0.44183001,2263.9,2263.7,1.59956832]
[1725689509242,0.44183001,2263.9,2263.7,0.44186]
[1725689509443,0.44183001,2263.9,2263.7,1.59956832]
[1725689510243,0.44183001,2263.9,2263.7,1.15770832]
[1725689510445,0.44184,2263.8,2263.7,1.15770832]
[1725689510640,0.44184,2263.8,2263.6,6.07737832]
[1725689511339,0.44186,2263.7,2263.6,4.36550832]
[1725689511546,1.17696,2263.7,2263.6,6.57592923]
[1725689511845,0.44185,2263.8,2263.6,3.81011939]
[1725689512145,0.44185,2263.8,2263.7,1.15314685]
[1725689513448,0.44184001,2263.9,2263.7,1.15314685]
[1725689513747,0.44184001,2263.9,2263.7,1.59500685]
[1725689514843,1e-08,2263.9,2263.8,0.44184]
[1725689515050,1e-08,2263.9,2263.8,12.39982222]
[1725689515240,0.44176,2264.3,2264.0,0.44179]
[1725689515442,1.50254,2264.4,2264.1,0.7531]
[1725689515443,0.44176,2264.2,2264.1,0.7531]
[1725689516146,1.50254,2264.4,2264.1,0.7531]
[1725689516547,0.44176,2264.2,2264.1,0.7531]
[1725689521244,0.44176,2264.2,2264.1,1.19488]
[1725689521649,0.44176,2264.2,2264.1,0.7531]
[1725689525149,0.44176,2264.2,2264.1,1.19488]
[1725689525751,0.44176,2264.2,2264.1,0.7531]
[1725689527448,0.44182,2263.9,2263.8,1.1527775]
[1725689527649,0.4419,2263.5,2263.4,1.1527775]
[1725689527850,0.4419,2263.5,2263.3,0.44194]
[1725689528055,0.4419,2263.5,2263.2,0.44194]
[1725689528558,0.44192,2263.4,2263.2,0.44194]
[1725689528745,0.3748,2263.6,2263.1,4.3605775]
[1725689528944,0.44186,2263.8,2263.5,0.44189]
[1725689529148,0.44186,2263.8,2263.6,0.7453]
[1725689529350,0.44186,2263.7,2263.6,0.7453]
[1725689532161,0.44198,2263.1,2263.0,1.1527775]
[1725689532458,0.442,2263.0,2262.8,0.7429]
[1725689532956,0.44202,2262.9,2262.8,0.7429]
[1725689533454,0.3634,2263.1,2262.5,1.9851575]
[1725689533455,0.44205,2262.8,2262.5,1.5430775]
[1725689533661,0.44203,2262.9,2262.5,1.9167775]
[1725689533865,0.44203,2262.9,2262.5,2.3588675]
[1725689534360,0.44201,2263.0,2262.5,2.3588675]
[1725689534562,0.44199,2263.1,2262.7,0.44204]
[1725689534762,0.442,2263.0,2262.8,0.3895]
[1725689535955,0.44202,2262.9,2262.8,0.3895]
[1725689537961,0.44201,2263.0,2262.8,0.3895]
[1725689538366,0.442,2263.0,2262.8,0.3895]
[1725689539166,0.442,2263.0,2262.9,0.3972]
[1725689540361,0.7377,2263.2,2262.5,3.5981]
[1725689540362,0.44202,2262.9,2262.5,3.5981]
[1725689540563,0.7349,2263.1,2262.6,0.3972]
[1725689540965,0.44204,2262.8,2262.6,0.83927]
[1725689541567,0.44203,2262.9,2262.6,0.83927]
[1725689542176,0.44204,2262.8,2262.6,0.83927]
[1725689543060,0.44204,2262.8,2262.6,0.3972]
[1725689543256,0.44206,2262.7,2262.6,0.3972]
[1725689543468,0.4421,2262.5,2262.3,0.44212]
[1725689543669,0.4421,2262.5,2262.3,1.57902]
[1725689543973,0.44209,2262.6,2262.3,1.57902]
[1725689544172,0.3883,2262.8,2262.3,1.1369]
[1725689544473,0.4421,2262.5,2262.3,1.57903]
[1725689544972,0.44209,2262.6,2262.4,0.44211]
[1725689545265,0.44209,2262.5,2262.3,1.57902]
[1725689546474,0.44211,2262.4,2262.3,1.1369]
[1725689548270,0.44211,2262.4,2262.3,0.7649]
[1725689551174,0.3883,2262.8,2262.3,8.3927]
[1725689551371,2.84767561,2263.0,2262.9,0.44202]
[1725689551569,0.44197,2263.2,2262.6,3.2078]
[1725689551772,4.16477,2263.5,2263.0,0.44199]
[1725689551773,0.44195,2263.3,2263.0,0.44199]
[1725689552078,4.16477,2263.5,2263.0,0.44199]
[1725689552079,0.44196,2263.2,2263.1,0.7506]
[1725689554869,0.44195,2263.3,2263.1,0.7506]
[1725689555874,0.44196,2263.2,2263.1,0.7506]
[1725689556374,4.16477,2263.5,2263.1,1.19257]
[1725689556375,0.44195,2263.3,2263.1,1.19257]
[1725689556573,0.44194,2263.3,2263.1,1.19257]
[1725689556766,0.44194,2263.3,2263.1,0.7506]
[1725689556968,0.44196,2263.2,2263.1,0.7506]
[1725689557671,0.44196,2263.2,2263.1,0.375]
[1725689557865,0.44206,2262.7,2262.6,0.3877]
[1725689560076,0.44205,2262.8,2262.6,0.3877]
[1725689561776,3.9863,2263.1,2262.6,0.3877]
[1725689561983,0.44201,2263.0,2262.7,0.44204]
[1725689562283,0.442,2263.0,2262.7,0.44204]
[1725689564182,0.442,2263.0,2262.8,0.3817]
[1725689565381,0.44206,2262.7,2262.6,3.2078]
[1725689565582,3.06,2262.7,2261.8,1.1527775]
[1725689565883,0.44239,2261.0,2260.4,3.2078]
[1725689566180,1.10538,2262.3,2260.4,3.2078]
[1725689566181,3.2078,2261.2,2260.4,3.2078]
[1725689566379,3.2078,2261.2,2260.7,3.2078]
[1725689566577,1.47,2261.6,2260.7,3.2078]
[1725689566578,5.10912666,2261.6,2260.7,3.2078]
[1725689566878,0.3643,2261.6,2261.0,3.2078]
[1725689567692,3.2078,2262.1,2261.3,3.2078]
[1725689567987,3.06,2262.0,2261.6,3.2078]
[1725689568177,0.40606359,2261.9,2260.7,1.15336725]
[1725689568378,3.67195785,2261.9,2260.9,3.2078]
[1725689568686,3.67195785,2261.9,2261.0,3.06]
[1725689568985,3.67195785,2261.9,2261.0,3.4314]
[1725689569278,1.05416785,2261.9,2261.0,3.4314]
[1725689569677,1.05416785,2261.9,2261.2,3.2078]
[1725689569886,3.2078,2262.0,2261.5,3.2078]
[1725689570081,3.2078,2262.0,2261.2,6.2678]
[1725689570477,3.2078,2262.0,2261.5,3.2078]
[1725689570674,3.2078,2262.0,2261.6,0.3642]
[1725689571079,0.3898,2262.3,2261.8,3.2078]
[1725689571286,0.3898,2262.3,2261.7,0.3866]
[1725689571482,0.3898,2262.3,2261.7,0.7466]
[1725689572376,3.5976,2262.3,2261.7,0.7466]
[1725689574383,4.03974,2262.3,2261.7,0.7466]
[1725689574981,4.03974,2262.3,2261.1,1.15336725]
[1725689574982,3.2078,2262.0,2261.1,1.15336725]
[1725689575289,4.4208,2262.2,2261.0,1.73005087]
[1725689575290,6.71004,2261.8,2261.0,0.81709]
[1725689575591,3.65004,2261.8,2261.0,0.81709]
[1725689576088,0.44225,2261.7,2261.0,0.81709]
[1725689577683,0.44227,2261.6,2261.0,0.81709]
[1725689578189,0.44227,2261.6,2261.0,0.3747]
[1725689578377,0.44227,2261.6,2261.2,3.2078]
[1725689578579,0.44227,2261.6,2261.0,0.81708]
[1725689578785,0.44227,2261.6,2261.2,3.2078]
[1725689579193,0.44222,2261.9,2261.2,3.2078]
[1725689579376,3.2078,2262.1,2261.2,3.2078]
[1725689579582,0.44224,2261.8,2261.2,3.2078]
[1725689579788,0.44224,2261.8,2261.3,0.44233]
[1725689579990,0.44224,2261.8,2261.2,3.65014]
[1725689580487,0.44224,2261.8,2261.2,3.2078]
[1725689580681,0.44224,2261.8,2261.2,3.65014]
[1725689581082,0.44224,2261.8,2261.3,0.44233]
[1725689581493,0.44226,2261.7,2261.2,3.65014]
[1725689581888,0.44224,2261.8,2261.3,0.44233]
[1725689582388,0.44224,2261.8,2261.4,0.3763]
[1725689582790,0.44224,2261.8,2261.4,0.81861]
[1725689583387,0.44224,2261.8,2261.4,0.3763]
[1725689583786,0.44225,2261.7,2261.4,0.3763]
[1725689583982,3.2078,2262.1,2261.4,0.3763]
[1725689584295,0.44222,2261.9,2261.5,1.22598]
[1725689584488,3.2078,2262.1,2261.5,3.9915]
[1725689584687,0.44222,2261.9,2261.5,1.22598]
[1725689584893,0.44222,2261.9,2261.5,4.43378]
[1725689585087,0.44222,2261.9,2261.5,1.22599]
[1725689585396,0.44224,2261.8,2261.5,0.7837]
[1725689585698,0.44224,2261.8,2261.5,3.9915]
[1725689585894,0.44224,2261.8,2261.5,4.43379]
[1725689586292,3.2078,2262.1,2261.5,4.43379]
[1725689586493,0.44223,2261.9,2261.5,4.43379]
[1725689587293,0.44223,2261.8,2261.5,4.43379]
[1725689587895,0.44222,2261.9,2261.5,4.43379]
[1725689588095,0.44222,2261.9,2261.5,1.22599]
[1725689588395,0.44222,2261.9,2261.5,4.43379]
[1725689589000,3.2078,2262.1,2261.5,3.9915]
[1725689589001,0.4422,2262.0,2261.5,3.9915]
[1725689589198,0.4422,2262.0,2261.7,0.44224]
[1725689589599,0.44218,2262.1,2261.7,0.44224]
[1725689589899,4.55518,2262.3,2261.5,3.9915]
[1725689589900,0.3898,2262.3,2261.5,3.9915]
[1725689590204,0.3898,2262.3,2261.8,3.2078]
[1725689590502,0.44215,2262.2,2261.9,0.8011]
[1725689590702,6.05547561,2262.5,2262.1,3.2078]
[1725689590907,0.44208,2262.6,2262.2,0.44214]
[1725689591301,0.44208,2262.6,2262.1,3.2078]
[1725689591501,0.4421,2262.5,2262.2,0.44214]
[1725689591903,0.44209,2262.6,2262.2,0.44214]
[1725689592196,0.44207,2262.6,2262.0,0.7565]
[1725689592396,0.44217,2262.1,2262.0,0.7565]
[1725689594800,0.44217,2262.1,2262.0,0.3776]
[1725689597504,0.44217,2262.2,2262.0,0.3776]
[1725689598005,0.44217,2262.1,2262.0,0.3776]
[1725689600299,0.44219,2262.0,2261.9,0.3589]
[1725689604811,1.10529,2262.4,2261.9,0.80111]
[1725689604999,0.44216,2262.2,2262.0,0.44219]
[1725689605199,0.44216,2262.2,2262.1,0.7649]
[1725689611414,4.60755,2262.2,2262.1,0.3844]
[1725689616011,3.50216,2262.2,2261.9,0.3589]
[1725689616219,4.60768,2262.0,2261.9,0.3589]
[1725689616416,4.60768,2262.0,2261.9,0.7494]
[1725689617019,4.60768,2262.0,2261.9,0.3589]
[1725689617927,0.44221,2261.9,2261.8,0.3928]
[1725689618517,0.44225,2261.7,2261.6,0.7423]
[1725689619718,0.44225,2261.7,2261.6,1.89192102]
[1725689619933,0.44225,2261.7,2261.6,0.7423]
[1725689620224,0.44225,2261.8,2261.6,1.18457]
[1725689620414,3.2078,2262.2,2261.6,0.7423]
[1725689620618,2.84767561,2262.7,2262.1,6.03764153]
[1725689620822,2.84767561,2263.0,2262.8,0.44202]
[1725689621019,3.5796,2263.4,2262.8,0.44202]
[1725689621020,7.76534006,2263.5,2263.0,0.44199]
[1725689621227,3.06,2263.5,2263.2,0.44195]
[1725689621526,3.50191,2263.5,2263.2,0.44195]
[1725689622024,0.44192,2263.4,2263.2,0.44195]
[1725689622225,3.391727,2263.5,2263.2,0.44195]
[1725689622226,3.50191,2263.5,2263.2,0.44195]
[1725689622426,0.44189,2263.6,2263.1,4.75680509]
[1725689622620,0.44189,2263.6,2263.3,0.44194]
[1725689622821,0.44189,2263.6,2263.2,0.44195]
[1725689623021,0.44189,2263.6,2263.3,0.44194]
[1725689623224,0.44189,2263.6,2263.2,0.44194]
[1725689623625,3.50187,2263.7,2263.1,1.54900509]
[1725689623817,0.44187,2263.7,2263.3,3.64973]
[1725689624020,6.13029091,2263.9,2263.3,3.64973]
[1725689624227,0.44187,2263.7,2263.3,3.64973]
[1725689624723,0.44188,2263.6,2263.3,3.64973]
[1725689627224,0.44188,2263.6,2263.4,0.3841]
[1725689629233,0.44188,2263.6,2263.4,0.82602]
[1725689629935,0.44188,2263.6,2263.4,0.3841]
[1725689631044,1.10456,2263.9,2263.4,0.3841]
[1725689631045,0.4419,2263.5,2263.4,0.3841]
[1725689631442,1.10456,2263.9,2263.4,4.8025]
[1725689631744,0.4419,2263.5,2263.4,0.3841]
[1725689632244,0.4419,2263.5,2263.4,4.8025]
[1725689637651,2.84767561,2264.1,2263.9,0.44181]
[1725689637951,0.44174,2264.4,2264.0,4.0311]
[1725689638349,2.84767561,2264.6,2264.0,4.0311]
[1725689638350,0.4417,2264.5,2264.1,3.50178]
[1725689638947,2.84767561,2264.6,2264.1,3.06]
[1725689639147,0.4417,2264.6,2264.2,0.44175]
[1725689640444,0.44169,2264.6,2264.2,0.44175]
[1725689640850,0.44169,2264.6,2263.7,3.2078]
[1725689640851,7.6238,2264.5,2263.7,3.2078]
[1725689641052,0.44182,2263.9,2263.7,6.2678]
[1725689641554,0.44184,2263.8,2263.7,6.2678]
[1725689641754,1.47917,2264.1,2263.7,6.2678]
[1725689642048,0.44183,2263.9,2263.7,6.2678]
[1725689642450,0.44183,2263.9,2263.7,6.70966]
[1725689642757,0.44183,2263.9,2263.7,6.2678]
[1725689643949,0.44177,2264.2,2263.8,4.85942]
[1725689644152,0.44177,2264.2,2263.9,3.50182]
[1725689644351,0.44176,2264.3,2264.0,3.2078]
[1725689644659,0.44176,2264.3,2264.1,0.3897]
[1725689645555,2.84767561,2264.4,2264.2,4.85856]
[1725689645755,1.10412,2264.8,2264.3,3.5873]
[1725689645956,0.44171,2264.5,2264.3,3.5873]
[1725689650051,0.44171,2264.5,2264.3,4.02904]
[1725689650362,0.44176,2264.2,2264.1,0.3897]
[1725689650567,0.44175,2264.3,2264.1,0.3897]
[1725689650854,0.44174,2264.4,2264.1,3.89148]
[1725689651253,0.44169,2264.6,2264.3,3.2078]
[1725689651457,2.84767561,2264.9,2264.5,3.06]
[1725689651761,0.44162,2265.0,2264.7,0.44166]
[1725689652652,1.49015,2265.2,2264.6,3.9682]
[1725689652653,0.44159,2265.1,2264.9,3.2078]
[1725689653157,0.44158,2265.2,2264.9,3.2078]
[1725689653454,0.44159,2265.1,2264.9,3.2078]
[1725689653859,2.84767561,2265.3,2264.9,3.2078]
[1725689653860,0.44158,2265.2,2264.9,3.2078]
[1725689654055,0.44158,2265.2,2264.9,3.64942]
[1725689654264,0.4416,2265.1,2264.9,3.2078]
[1725689654759,4.31165,2265.4,2264.9,3.2078]
[1725689654954,0.44158,2265.2,2264.9,3.64942]
[1725689656058,0.44159,2265.1,2264.9,3.2078]
[1725689657260,0.44161,2265.0,2264.9,3.2078]
[1725689657559,0.44163,2264.9,2264.7,0.44166]
[1725689657763,0.44162,2265.0,2264.7,3.64946]
[1725689658274,1.10397,2265.1,2264.7,3.2078]
[1725689658765,0.44164,2264.9,2264.7,3.2078]
[1725689659563,0.44164,2264.9,2264.7,3.64946]
[1725689659965,0.44162,2265.0,2264.7,3.64946]
[1725689660365,0.44163,2264.9,2264.7,3.2078]
[1725689662572,1.10397,2265.1,2264.7,3.2078]
[1725689662573,0.44161,2265.0,2264.8,3.50165]
[1725689663267,0.4416,2265.1,2264.8,3.50164]
[1725689663668,0.44161,2265.0,2264.8,3.06]
[1725689664770,0.44159,2265.1,2264.8,3.50163]
[1725689665665,0.44161,2265.0,2264.8,3.50163]
[1725689665865,0.44161,2265.0,2264.8,3.06]
[1725689666070,1.10393,2265.2,2264.8,3.06]
[1725689666268,0.44163,2264.9,2264.8,3.06]
[1725689671184,0.04659855,2266.0,2265.6,3.2078]
[1725689671480,0.44126,2266.8,2266.0,3.06]
[1725689671673,0.3821,2267.0,2266.3,6.2678]
[1725689671874,0.3821,2267.0,2266.6,3.2078]
[1725689673675,0.44127,2266.8,2266.6,3.2078]
[1725689673870,4.85245,2266.9,2266.6,3.2078]
[1725689674070,4.412,2266.8,2266.6,3.2078]
[1725689674272,0.44127,2266.8,2266.6,3.2078]
[1725689674474,4.412,2266.7,2266.6,3.2078]
[1725689674971,10.85328,2266.7,2266.6,3.2078]
[1725689679393,0.3821,2267.0,2266.6,6.2678]
[1725689679694,0.82332,2267.0,2266.6,6.2678]
[1725689680495,0.3821,2267.0,2266.6,6.2678]
[1725689680699,0.3619,2267.1,2266.6,6.2678]
[1725689680897,0.3619,2267.1,2266.6,6.70908]
[1725689681194,0.3619,2267.1,2266.6,7.08708]
[1725689682096,0.44125,2266.9,2266.6,3.2078]
[1725689682289,0.3619,2267.1,2266.5,3.4469]
[1725689682492,0.44123,2267.0,2266.5,3.4469]
[1725689682699,0.44123,2267.0,2266.6,3.2078]
[1725689683704,0.80311,2267.1,2266.7,3.06]
[1725689684000,0.3619,2267.1,2266.7,3.06]
[1725689684202,4.7731,2267.1,2266.7,3.06]
[1725689684388,0.44122,2267.0,2266.7,3.06]
[1725689684893,0.44124,2266.9,2266.7,3.06]
[1725689685499,4.85244,2266.9,2266.7,3.06]
[1725689688595,4.4112,2266.9,2266.7,3.06]
[1725689688998,4.85244,2266.9,2266.7,3.06]
[1725689691203,4.4112,2266.9,2266.6,3.2078]
[1725689691406,1.10305,2267.0,2266.6,3.2078]
[1725689691604,0.44128,2266.7,2266.6,3.2078]
[1725689691806,0.44126,2266.8,2266.6,6.2678]
[1725689692003,0.44127,2266.8,2266.6,6.2678]
[1725689692403,1.10305,2267.0,2266.6,6.2678]
[1725689692404,0.44128,2266.7,2266.6,6.2678]
[1725689693795,0.44127,2266.8,2266.6,6.2678]
[1725689693996,0.44127,2266.8,2266.6,6.6611]
[1725689694807,0.44128,2266.7,2266.6,6.6611]
[1725689695406,0.44127,2266.8,2266.6,6.6611]
[1725689696009,0.44128,2266.7,2266.6,6.6611]